Body Name,Body,Service Division,Expense Type,Date Paid,Transaction Ref,Invoice Amount,Supplier Name
South Holland District Council,http://statistics.data.gov.uk/id/local-authority/32UF,Corporate,Payroll - Nursery Vouchers,14/09/2021,30005705,557.00 ,Fideliti Limited
South Holland District Council,http://statistics.data.gov.uk/id/local-authority/32UF,Corporate,Payroll - Unison,23/09/2021,30006018,882.65 ,Unison
South Holland District Council,http://statistics.data.gov.uk/id/local-authority/32UF,Asset and Property,Water and Sewerage Charges,28/09/2021,30005972,808.65 ,Wave
South Holland District Council,http://statistics.data.gov.uk/id/local-authority/32UF,Building Control,Computer Software Licence Costs,07/10/2021,30005829,500.00 ,Symetri Ltd
South Holland District Council,http://statistics.data.gov.uk/id/local-authority/32UF,Building Control,Professional and Contractors Fees,23/09/2021,30003726,"2,885.83 ",Lincolnshire County Council
South Holland District Council,http://statistics.data.gov.uk/id/local-authority/32UF,Building Control,Professional and Contractors Fees,30/09/2021,30005561,"2,010.00 ",Navitas EAS
South Holland District Council,http://statistics.data.gov.uk/id/local-authority/32UF,Building Control,Professional and Contractors Fees,30/09/2021,30005656,455.00 ,Barlings KWA Ltd
South Holland District Council,http://statistics.data.gov.uk/id/local-authority/32UF,Building Control,Professional and Contractors Fees,05/10/2021,30006213,"2,936.70 ",Lincolnshire County Council
South Holland District Council,http://statistics.data.gov.uk/id/local-authority/32UF,Capital,Works to Buildings (Main Contractor),16/09/2021,30004941,"5,265.00 ",D Brown Building Contractors Ltd
South Holland District Council,http://statistics.data.gov.uk/id/local-authority/32UF,Capital,Works to Buildings (Main Contractor),16/09/2021,30004985,"7,750.42 ",D Brown Building Contractors Ltd
South Holland District Council,http://statistics.data.gov.uk/id/local-authority/32UF,Capital,Works to Buildings (Main Contractor),14/09/2021,30005688,"5,967.83 ",CSM Carpets and Flooring Ltd
South Holland District Council,http://statistics.data.gov.uk/id/local-authority/32UF,Capital,Works to Buildings (Main Contractor),14/09/2021,30005713,850.00 ,Boors Ltd
South Holland District Council,http://statistics.data.gov.uk/id/local-authority/32UF,Capital,Works to Buildings (Main Contractor),14/09/2021,30005725,"2,048.57 ",M P L Home Improvements
South Holland District Council,http://statistics.data.gov.uk/id/local-authority/32UF,Capital,Works to Buildings (Main Contractor),14/09/2021,30005729,"47,250.91 ",Vinshire Gas Services
South Holland District Council,http://statistics.data.gov.uk/id/local-authority/32UF,Capital,Works to Buildings (Main Contractor),21/09/2021,30005812,"67,877.62 ",Vinshire Gas Services
South Holland District Council,http://statistics.data.gov.uk/id/local-authority/32UF,Capital,Works to Buildings (Main Contractor),23/09/2021,30005936,"64,584.88 ",Vinshire Gas Services
South Holland District Council,http://statistics.data.gov.uk/id/local-authority/32UF,Capital,Works to Buildings (Main Contractor),07/10/2021,30006015,"34,837.18 ",Vinshire Gas Services
South Holland District Council,http://statistics.data.gov.uk/id/local-authority/32UF,Capital,Works to Buildings (Main Contractor),30/09/2021,30006183,"4,476.82 ",D Brown Building Contractors Ltd
South Holland District Council,http://statistics.data.gov.uk/id/local-authority/32UF,Chief Executive,Shared Management,07/09/2021,30005069,"33,097.56 ",Breckland Council
South Holland District Council,http://statistics.data.gov.uk/id/local-authority/32UF,Chief Executive,Shared Management,23/09/2021,30005555,"13,055.22 ",Breckland Council
South Holland District Council,http://statistics.data.gov.uk/id/local-authority/32UF,Commercialisation - Property & Development,Professional and Contractors Fees,21/09/2021,30005679,"3,150.00 ",Eco Clean Carpet Cleaning
South Holland District Council,http://statistics.data.gov.uk/id/local-authority/32UF,Commercialisation - Property & Development,Professional and Contractors Fees,21/09/2021,30005815,"1,000.00 ",Influence
South Holland District Council,http://statistics.data.gov.uk/id/local-authority/32UF,Community Development,Computer Hardware Maintenance,30/09/2021,30005722,849.32 ,Spektrix Ltd
South Holland District Council,http://statistics.data.gov.uk/id/local-authority/32UF,Community Development,Furniture and Equipment,30/09/2021,30006158,"2,400.00 ",Spalding Catering Company Ltd
South Holland District Council,http://statistics.data.gov.uk/id/local-authority/32UF,Community Development,Materials and Consumables,30/09/2021,30005599,864.12 ,Veolia Es UK Ltd
South Holland District Council,http://statistics.data.gov.uk/id/local-authority/32UF,Community Development,Other Miscellaneous Expenses,23/09/2021,30005578,"13,109.00 ",Parkwood Leisure Limited
South Holland District Council,http://statistics.data.gov.uk/id/local-authority/32UF,Community Development,Other Miscellaneous Expenses,23/09/2021,30005925,"1,225.58 ",Amber Sinclair
South Holland District Council,http://statistics.data.gov.uk/id/local-authority/32UF,Community Development,Other Miscellaneous Expenses,28/09/2021,30005971,"1,000.00 ",The Joker Entertainment
South Holland District Council,http://statistics.data.gov.uk/id/local-authority/32UF,Community Development,Professional and Contractors Fees,28/09/2021,30005551,866.25 ,James Andrew
South Holland District Council,http://statistics.data.gov.uk/id/local-authority/32UF,Community Development,Professional and Contractors Fees,28/09/2021,30005552,"1,067.50 ",James Andrew
South Holland District Council,http://statistics.data.gov.uk/id/local-authority/32UF,Community Development,Professional and Contractors Fees,16/09/2021,30005720,820.00 ,Joshua Baldwin
South Holland District Council,http://statistics.data.gov.uk/id/local-authority/32UF,Community Development,Professional and Contractors Fees,21/09/2021,30005739,"1,120.00 ",Agenda Cleaning Services
South Holland District Council,http://statistics.data.gov.uk/id/local-authority/32UF,Community Development,Professional and Contractors Fees,28/09/2021,30005776,"1,207.50 ",James Andrew
South Holland District Council,http://statistics.data.gov.uk/id/local-authority/32UF,Community Development,Professional and Contractors Fees,28/09/2021,30005777,"1,041.25 ",James Andrew
South Holland District Council,http://statistics.data.gov.uk/id/local-authority/32UF,Community Development,Public Courses and Workshops,30/09/2021,30006011,820.00 ,Joshua Baldwin
South Holland District Council,http://statistics.data.gov.uk/id/local-authority/32UF,Community Development,Public Courses and Workshops,30/09/2021,30006012,550.00 ,University of Lincoln Transported
South Holland District Council,http://statistics.data.gov.uk/id/local-authority/32UF,Community Development,Purchase of Goods for Resale,28/09/2021,30006161,"1,187.04 ",Bidfood
South Holland District Council,http://statistics.data.gov.uk/id/local-authority/32UF,Democratic Services,External Printing and Design Costs,21/09/2021,30005837,"17,779.51 ",Civica Election Services
South Holland District Council,http://statistics.data.gov.uk/id/local-authority/32UF,Democratic Services,Furniture and Equipment,16/09/2021,30005852,800.00 ,Springfields Events and Conf Centre
South Holland District Council,http://statistics.data.gov.uk/id/local-authority/32UF,Democratic Services,Legal Fees Non-Routine,14/09/2021,30005412,"1,920.67 ",Lincolnshire County Council
South Holland District Council,http://statistics.data.gov.uk/id/local-authority/32UF,Democratic Services,Legal Fees Non-Routine,22/10/2021,30006262,"1,750.00 ",Kings Chambers
South Holland District Council,http://statistics.data.gov.uk/id/local-authority/32UF,Democratic Services,Other Miscellaneous Expenses,30/09/2021,30006245,678.50 ,Whaplode Parish Council
South Holland District Council,http://statistics.data.gov.uk/id/local-authority/32UF,Democratic Services,Postages,30/09/2021,30005466,253.25 ,Civica Election Services
South Holland District Council,http://statistics.data.gov.uk/id/local-authority/32UF,Democratic Services,Postages,21/09/2021,30005894,580.56 ,Civica Election Services
South Holland District Council,http://statistics.data.gov.uk/id/local-authority/32UF,Democratic Services,Postages,21/09/2021,30005896,"1,683.29 ",Civica Election Services
South Holland District Council,http://statistics.data.gov.uk/id/local-authority/32UF,Democratic Services,Stationery,30/09/2021,30005466,242.39 ,Civica Election Services
South Holland District Council,http://statistics.data.gov.uk/id/local-authority/32UF,Democratic Services,Stationery,21/09/2021,30005894,929.78 ,Civica Election Services
South Holland District Council,http://statistics.data.gov.uk/id/local-authority/32UF,Economic Development,Grants and Contributions to Outside Bodies - No Service Received,23/09/2021,30005984,"5,949.17 ",Pellcroft Engineering Ltd
South Holland District Council,http://statistics.data.gov.uk/id/local-authority/32UF,Economic Development,Grants and Contributions to Outside Bodies - No Service Received,23/09/2021,30006031,"11,200.00 ",Glen Farrow UK Ltd
South Holland District Council,http://statistics.data.gov.uk/id/local-authority/32UF,Economic Development,Grants and Contributions to Outside Bodies - No Service Received,28/09/2021,30006150,"6,494.00 ",Electric Egg Ltd
South Holland District Council,http://statistics.data.gov.uk/id/local-authority/32UF,Economic Development,Grants and Contributions to Outside Bodies - No Service Received,30/09/2021,30006233,"17,163.00 ",Spalding Apparel Ltd
South Holland District Council,http://statistics.data.gov.uk/id/local-authority/32UF,Economic Development,Grants and Contributions to Outside Bodies - No Service Received,30/09/2021,30006234,"13,800.00 ",RG Laser Ltd
South Holland District Council,http://statistics.data.gov.uk/id/local-authority/32UF,Economic Development,Grants and Contributions to Outside Bodies - No Service Received,30/09/2021,30006238,"5,215.00 ",Station Storage Lincs Ltd
South Holland District Council,http://statistics.data.gov.uk/id/local-authority/32UF,Economic Development,Grants and Contributions to Outside Bodies - No Service Received,30/09/2021,30006239,"25,000.00 ",Crowtree Wigwams
South Holland District Council,http://statistics.data.gov.uk/id/local-authority/32UF,Economic Development,Grants and Contributions to Outside Bodies - No Service Received,30/09/2021,30006240,"6,999.00 ",Miss J Mellish tr as Four Boys Village Store
South Holland District Council,http://statistics.data.gov.uk/id/local-authority/32UF,Economic Development,Grants and Contributions to Outside Bodies - No Service Received,30/09/2021,30006320,"10,856.68 ",Matthew Verdegaal tr as MTJV Plants
South Holland District Council,http://statistics.data.gov.uk/id/local-authority/32UF,Economic Development,Grants and Contributions to Outside Bodies - No Service Received,05/10/2021,30006329,"4,760.00 ",Premier Property Management Ltd
South Holland District Council,http://statistics.data.gov.uk/id/local-authority/32UF,Economic Development,Professional and Contractors Fees,09/09/2021,30005133,950.00 ,Michael Page Internat Recruitment Ltd
South Holland District Council,http://statistics.data.gov.uk/id/local-authority/32UF,Economic Development,Professional and Contractors Fees,21/09/2021,30005631,850.00 ,Michael Page Internat Recruitment Ltd
South Holland District Council,http://statistics.data.gov.uk/id/local-authority/32UF,Economic Development,Professional and Contractors Fees,21/09/2021,30005692,"1,639.29 ",Social Change UK
South Holland District Council,http://statistics.data.gov.uk/id/local-authority/32UF,Economic Development,Professional and Contractors Fees,21/09/2021,30005848,900.00 ,Michael Page Internat Recruitment Ltd
South Holland District Council,http://statistics.data.gov.uk/id/local-authority/32UF,Economic Development,Professional and Contractors Fees,16/09/2021,30005849,"2,187.50 ",Kudos Project Management
South Holland District Council,http://statistics.data.gov.uk/id/local-authority/32UF,Economic Development,Professional and Contractors Fees,21/09/2021,30005891,"6,405.00 ",Kudos Project Management
South Holland District Council,http://statistics.data.gov.uk/id/local-authority/32UF,Economic Development,Professional and Contractors Fees,21/09/2021,30005892,"4,462.50 ",Kudos Project Management
South Holland District Council,http://statistics.data.gov.uk/id/local-authority/32UF,Economic Development,Professional and Contractors Fees,23/09/2021,30005974,612.50 ,Michael Page Internat Recruitment Ltd
South Holland District Council,http://statistics.data.gov.uk/id/local-authority/32UF,Environmental Services,Agency Staff,07/09/2021,30005304,"3,509.58 ",Encore Personnel Services Ltd
South Holland District Council,http://statistics.data.gov.uk/id/local-authority/32UF,Environmental Services,Agency Staff,02/09/2021,30005361,"4,189.14 ",247 Personnel Ltd
South Holland District Council,http://statistics.data.gov.uk/id/local-authority/32UF,Environmental Services,Agency Staff,07/09/2021,30005461,"3,766.91 ",The Best Connection Group Ltd
South Holland District Council,http://statistics.data.gov.uk/id/local-authority/32UF,Environmental Services,Agency Staff,07/09/2021,30005468,786.18 ,Capital Outsourcing Group Food
South Holland District Council,http://statistics.data.gov.uk/id/local-authority/32UF,Environmental Services,Agency Staff,07/09/2021,30005469,"2,839.64 ",Essential Staffing Ltd
South Holland District Council,http://statistics.data.gov.uk/id/local-authority/32UF,Environmental Services,Agency Staff,07/09/2021,30005479,"1,422.48 ",Blue Arrow Ltd
South Holland District Council,http://statistics.data.gov.uk/id/local-authority/32UF,Environmental Services,Agency Staff,07/09/2021,30005483,"1,149.80 ",Integrity Plus Ltd
South Holland District Council,http://statistics.data.gov.uk/id/local-authority/32UF,Environmental Services,Agency Staff,07/09/2021,30005521,"1,287.51 ",Integrity Plus Ltd
South Holland District Council,http://statistics.data.gov.uk/id/local-authority/32UF,Environmental Services,Agency Staff,09/09/2021,30005550,816.06 ,Capital Outsourcing Group Food
South Holland District Council,http://statistics.data.gov.uk/id/local-authority/32UF,Environmental Services,Agency Staff,16/09/2021,30005653,651.20 ,Steves Garden and Household Services
South Holland District Council,http://statistics.data.gov.uk/id/local-authority/32UF,Environmental Services,Agency Staff,14/09/2021,30005693,436.01 ,247 Personnel Ltd
South Holland District Council,http://statistics.data.gov.uk/id/local-authority/32UF,Environmental Services,Agency Staff,14/09/2021,30005695,496.82 ,247 Personnel Ltd
South Holland District Council,http://statistics.data.gov.uk/id/local-authority/32UF,Environmental Services,Agency Staff,14/09/2021,30005696,663.67 ,247 Personnel Ltd
South Holland District Council,http://statistics.data.gov.uk/id/local-authority/32UF,Environmental Services,Agency Staff,14/09/2021,30005715,"2,682.24 ",247 Personnel Ltd
South Holland District Council,http://statistics.data.gov.uk/id/local-authority/32UF,Environmental Services,Agency Staff,14/09/2021,30005731,"3,634.04 ",The Best Connection Group Ltd
South Holland District Council,http://statistics.data.gov.uk/id/local-authority/32UF,Environmental Services,Agency Staff,28/09/2021,30005732,"3,412.37 ",Encore Personnel Services Ltd
South Holland District Council,http://statistics.data.gov.uk/id/local-authority/32UF,Environmental Services,Agency Staff,14/09/2021,30005735,"3,548.24 ",The Best Connection Group Ltd
South Holland District Council,http://statistics.data.gov.uk/id/local-authority/32UF,Environmental Services,Agency Staff,14/09/2021,30005736,"3,157.05 ",Essential Staffing Ltd
South Holland District Council,http://statistics.data.gov.uk/id/local-authority/32UF,Environmental Services,Agency Staff,14/09/2021,30005737,"2,897.54 ",Essential Staffing Ltd
South Holland District Council,http://statistics.data.gov.uk/id/local-authority/32UF,Environmental Services,Agency Staff,14/09/2021,30005743,"3,359.68 ",The Best Connection Group Ltd
South Holland District Council,http://statistics.data.gov.uk/id/local-authority/32UF,Environmental Services,Agency Staff,23/09/2021,30005976,"2,922.49 ",Integrity Plus Ltd
South Holland District Council,http://statistics.data.gov.uk/id/local-authority/32UF,Environmental Services,Agency Staff,23/09/2021,30005977,"2,584.43 ",Integrity Plus Ltd
South Holland District Council,http://statistics.data.gov.uk/id/local-authority/32UF,Environmental Services,Agency Staff,23/09/2021,30005978,"3,408.00 ",The Best Connection Group Ltd
South Holland District Council,http://statistics.data.gov.uk/id/local-authority/32UF,Environmental Services,Agency Staff,07/10/2021,30005992,901.00 ,Questech Recruitment Limited
South Holland District Council,http://statistics.data.gov.uk/id/local-authority/32UF,Environmental Services,Agency Staff,12/10/2021,30006009,"1,060.00 ",Questech Recruitment Limited
South Holland District Council,http://statistics.data.gov.uk/id/local-authority/32UF,Environmental Services,Agency Staff,23/09/2021,30006013,"3,043.53 ",Integrity Plus Ltd
South Holland District Council,http://statistics.data.gov.uk/id/local-authority/32UF,Environmental Services,Agency Staff,23/09/2021,30006014,"1,108.49 ",Integrity Plus Ltd
South Holland District Council,http://statistics.data.gov.uk/id/local-authority/32UF,Environmental Services,Agency Staff,23/09/2021,30006029,545.60 ,Steves Garden and Household Services
South Holland District Council,http://statistics.data.gov.uk/id/local-authority/32UF,Environmental Services,Agency Staff,30/09/2021,30006035,592.00 ,Steves Garden and Household Services
South Holland District Council,http://statistics.data.gov.uk/id/local-authority/32UF,Environmental Services,Agency Staff,23/09/2021,30006037,"3,432.12 ",Essential Staffing Ltd
South Holland District Council,http://statistics.data.gov.uk/id/local-authority/32UF,Environmental Services,Agency Staff,28/09/2021,30006039,"3,146.29 ",Encore Personnel Services Ltd
South Holland District Council,http://statistics.data.gov.uk/id/local-authority/32UF,Environmental Services,Agency Staff,05/10/2021,30006040,"1,346.80 ",Blue Arrow Ltd
South Holland District Council,http://statistics.data.gov.uk/id/local-authority/32UF,Environmental Services,Agency Staff,07/10/2021,30006042,958.48 ,Capital Outsourcing Group Food
South Holland District Council,http://statistics.data.gov.uk/id/local-authority/32UF,Environmental Services,Agency Staff,28/09/2021,30006146,"3,493.20 ",The Best Connection Group Ltd
South Holland District Council,http://statistics.data.gov.uk/id/local-authority/32UF,Environmental Services,Agency Staff,28/09/2021,30006149,"3,156.03 ",Encore Personnel Services Ltd
South Holland District Council,http://statistics.data.gov.uk/id/local-authority/32UF,Environmental Services,Agency Staff,28/09/2021,30006167,"3,500.90 ",The Best Connection Group Ltd
South Holland District Council,http://statistics.data.gov.uk/id/local-authority/32UF,Environmental Services,Agency Staff,28/09/2021,30006170,"3,400.59 ",Integrity Plus Ltd
South Holland District Council,http://statistics.data.gov.uk/id/local-authority/32UF,Environmental Services,Agency Staff,28/09/2021,30006171,"1,500.94 ",Integrity Plus Ltd
South Holland District Council,http://statistics.data.gov.uk/id/local-authority/32UF,Environmental Services,Agency Staff,28/09/2021,30006173,609.60 ,247 Personnel Ltd
South Holland District Council,http://statistics.data.gov.uk/id/local-authority/32UF,Environmental Services,Agency Staff,30/09/2021,30006191,"3,047.73 ",The Best Connection Group Ltd
South Holland District Council,http://statistics.data.gov.uk/id/local-authority/32UF,Environmental Services,Agency Staff,30/09/2021,30006220,545.01 ,247 Personnel Ltd
South Holland District Council,http://statistics.data.gov.uk/id/local-authority/32UF,Environmental Services,Agency Staff,30/09/2021,30006222,773.61 ,247 Personnel Ltd
South Holland District Council,http://statistics.data.gov.uk/id/local-authority/32UF,Environmental Services,Agency Staff,30/09/2021,30006228,491.36 ,Capital Outsourcing Group Food
South Holland District Council,http://statistics.data.gov.uk/id/local-authority/32UF,Environmental Services,Agency Staff,30/09/2021,30006236,"3,486.48 ",Integrity Plus Ltd
South Holland District Council,http://statistics.data.gov.uk/id/local-authority/32UF,Environmental Services,Agency Staff,05/10/2021,30006255,"3,681.75 ",247 Personnel Ltd
South Holland District Council,http://statistics.data.gov.uk/id/local-authority/32UF,Environmental Services,Agency Staff,12/10/2021,30006256,"1,603.95 ",Blue Arrow Ltd
South Holland District Council,http://statistics.data.gov.uk/id/local-authority/32UF,Environmental Services,Agency Staff,30/09/2021,30006257,"1,562.90 ",Integrity Plus Ltd
South Holland District Council,http://statistics.data.gov.uk/id/local-authority/32UF,Environmental Services,Agency Staff,30/09/2021,30006258,"3,712.13 ",Essential Staffing Ltd
South Holland District Council,http://statistics.data.gov.uk/id/local-authority/32UF,Environmental Services,Agency Staff,05/10/2021,30006260,"2,886.73 ",Encore Personnel Services Ltd
South Holland District Council,http://statistics.data.gov.uk/id/local-authority/32UF,Environmental Services,Cleaning Contract,23/09/2021,30006041,680.00 ,MPC Window Cleaning Service
South Holland District Council,http://statistics.data.gov.uk/id/local-authority/32UF,Environmental Services,Commercial Vehicle Lease Payments (Less than 12 months),30/09/2021,30005455,"1,766.66 ",Go Plant Fleet Services
South Holland District Council,http://statistics.data.gov.uk/id/local-authority/32UF,Environmental Services,Fuel and Oil,14/09/2021,30005632,"6,741.54 ",C H Jones Ltd
South Holland District Council,http://statistics.data.gov.uk/id/local-authority/32UF,Environmental Services,Fuel and Oil,09/09/2021,30005676,"6,469.44 ",C H Jones Ltd
South Holland District Council,http://statistics.data.gov.uk/id/local-authority/32UF,Environmental Services,Fuel and Oil,23/09/2021,30005804,"1,069.01 ",Witham Oil and Paint Ltd
South Holland District Council,http://statistics.data.gov.uk/id/local-authority/32UF,Environmental Services,Fuel and Oil,30/09/2021,30005987,"1,299.00 ",WCF Chandlers
South Holland District Council,http://statistics.data.gov.uk/id/local-authority/32UF,Environmental Services,Fuel and Oil,28/09/2021,30006052,"7,073.72 ",C H Jones Ltd
South Holland District Council,http://statistics.data.gov.uk/id/local-authority/32UF,Environmental Services,Fuel and Oil,28/09/2021,30006143,"7,707.05 ",C H Jones Ltd
South Holland District Council,http://statistics.data.gov.uk/id/local-authority/32UF,Environmental Services,Furniture and Equipment,23/09/2021,30005440,575.00 ,Vision Techniques U K Ltd
South Holland District Council,http://statistics.data.gov.uk/id/local-authority/32UF,Environmental Services,Furniture and Equipment,30/09/2021,30005545,"1,068.22 ",Veolia Es UK Ltd
South Holland District Council,http://statistics.data.gov.uk/id/local-authority/32UF,Environmental Services,Furniture and Equipment,30/09/2021,30005738,555.58 ,Russells Kirbymoorside Ltd
South Holland District Council,http://statistics.data.gov.uk/id/local-authority/32UF,Environmental Services,Furniture and Equipment,14/10/2021,30006006,"1,078.40 ",Glasdon UK Ltd
South Holland District Council,http://statistics.data.gov.uk/id/local-authority/32UF,Environmental Services,Grants and Contributions - Where a Service is Received,02/09/2021,30005163,"1,260.00 ",Sutton Bridge and Wingland Parish Counc
South Holland District Council,http://statistics.data.gov.uk/id/local-authority/32UF,Environmental Services,Income Collected on Behalf of External Organisations,23/09/2021,30006025,"6,224.10 ",Broadgate Builders T/A Westlode Car Park
South Holland District Council,http://statistics.data.gov.uk/id/local-authority/32UF,Environmental Services,Materials and Consumables,28/09/2021,30005400,"3,629.34 ",Berry BPI Refuse
South Holland District Council,http://statistics.data.gov.uk/id/local-authority/32UF,Environmental Services,Materials and Consumables,28/09/2021,30005401,"2,870.48 ",Berry BPI Refuse
South Holland District Council,http://statistics.data.gov.uk/id/local-authority/32UF,Environmental Services,Materials and Consumables,23/09/2021,30005820,495.29 ,John Metcalfe
South Holland District Council,http://statistics.data.gov.uk/id/local-authority/32UF,Environmental Services,Materials and Consumables,12/10/2021,30005876,"3,447.44 ",Berry BPI Refuse
South Holland District Council,http://statistics.data.gov.uk/id/local-authority/32UF,Environmental Services,Materials and Consumables,14/10/2021,30005990,"8,167.55 ",Berry BPI Refuse
South Holland District Council,http://statistics.data.gov.uk/id/local-authority/32UF,Environmental Services,Materials and Consumables,14/10/2021,30005991,"1,765.51 ",Berry BPI Refuse
South Holland District Council,http://statistics.data.gov.uk/id/local-authority/32UF,Environmental Services,Professional and Contractors Fees,07/09/2021,30005405,"1,380.17 ",Lincolnshire County Council
South Holland District Council,http://statistics.data.gov.uk/id/local-authority/32UF,Environmental Services,Professional and Contractors Fees,07/09/2021,30005407,"1,347.24 ",Lincolnshire County Council
South Holland District Council,http://statistics.data.gov.uk/id/local-authority/32UF,Environmental Services,Professional and Contractors Fees,30/09/2021,30005758,999.99 ,Kings Armoured Security Services Ltd
South Holland District Council,http://statistics.data.gov.uk/id/local-authority/32UF,Environmental Services,Professional and Contractors Fees,21/09/2021,30005775,"2,346.96 ",GBSG Ltd
South Holland District Council,http://statistics.data.gov.uk/id/local-authority/32UF,Environmental Services,Professional and Contractors Fees,07/10/2021,30006026,"2,950.00 ",Weaar
South Holland District Council,http://statistics.data.gov.uk/id/local-authority/32UF,Environmental Services,Road Tax,14/10/2021,30006184,"2,846.00 ",Dennis Eagle
South Holland District Council,http://statistics.data.gov.uk/id/local-authority/32UF,Environmental Services,Tyres,30/09/2021,30006264,"5,352.33 ",Vaculug Technologies Ltd
South Holland District Council,http://statistics.data.gov.uk/id/local-authority/32UF,Environmental Services,Workshop Parts,07/09/2021,30005470,442.98 ,S and M Springs
South Holland District Council,http://statistics.data.gov.uk/id/local-authority/32UF,Environmental Services,Workshop Parts,23/09/2021,30005878,422.33 ,EMG Anglia Ltd
South Holland District Council,http://statistics.data.gov.uk/id/local-authority/32UF,Environmental Services,Workshop Parts,30/09/2021,30005879,561.21 ,Dennis Eagle
South Holland District Council,http://statistics.data.gov.uk/id/local-authority/32UF,Environmental Services,Workshop Parts,21/09/2021,30005887,"1,089.64 ",S and M Springs
South Holland District Council,http://statistics.data.gov.uk/id/local-authority/32UF,Environmental Services,Workshop Parts,30/09/2021,30005888,899.51 ,Fleet Factors Ltd
South Holland District Council,http://statistics.data.gov.uk/id/local-authority/32UF,Environmental Services,Workshop Parts,23/09/2021,30005889,"3,018.27 ",Fleet Factors Ltd
South Holland District Council,http://statistics.data.gov.uk/id/local-authority/32UF,Environmental Services,Workshop Parts,07/10/2021,30005890,"1,991.70 ",Fleet Factors Ltd
South Holland District Council,http://statistics.data.gov.uk/id/local-authority/32UF,Environmental Services,Workshop Parts,14/10/2021,30006008,"1,761.53 ",Fleet Factors Ltd
South Holland District Council,http://statistics.data.gov.uk/id/local-authority/32UF,Environmental Services,Workshop Parts,30/09/2021,30006211,583.24 ,S and M Springs
South Holland District Council,http://statistics.data.gov.uk/id/local-authority/32UF,Finance,Public Sector Partnership Services,16/09/2021,30005761,"257,205.75 ",Public Sector Partnership Services Ltd
South Holland District Council,http://statistics.data.gov.uk/id/local-authority/32UF,Housing,Agency Staff,09/09/2021,30005568,"1,000.00 ",G2 Recruitment Solutions
South Holland District Council,http://statistics.data.gov.uk/id/local-authority/32UF,Housing,Agency Staff,09/09/2021,30005569,"1,000.00 ",G2 Recruitment Solutions
South Holland District Council,http://statistics.data.gov.uk/id/local-authority/32UF,Housing,Agency Staff,09/09/2021,30005571,"1,000.00 ",G2 Recruitment Solutions
South Holland District Council,http://statistics.data.gov.uk/id/local-authority/32UF,Housing,Agency Staff,09/09/2021,30005572,"1,000.00 ",G2 Recruitment Solutions
South Holland District Council,http://statistics.data.gov.uk/id/local-authority/32UF,Housing,Agency Staff,09/09/2021,30005573,"1,000.00 ",G2 Recruitment Solutions
South Holland District Council,http://statistics.data.gov.uk/id/local-authority/32UF,Housing,Agency Staff,09/09/2021,30005574,"2,000.00 ",G2 Recruitment Solutions
South Holland District Council,http://statistics.data.gov.uk/id/local-authority/32UF,Housing,Agency Staff,09/09/2021,30005576,"1,000.00 ",G2 Recruitment Solutions
South Holland District Council,http://statistics.data.gov.uk/id/local-authority/32UF,Housing,Agency Staff,09/09/2021,30005577,"1,000.00 ",G2 Recruitment Solutions
South Holland District Council,http://statistics.data.gov.uk/id/local-authority/32UF,Housing,Agency Staff,09/09/2021,30005635,"1,000.00 ",G2 Recruitment Solutions
South Holland District Council,http://statistics.data.gov.uk/id/local-authority/32UF,Housing,Agency Staff,09/09/2021,30005637,"1,000.00 ",G2 Recruitment Solutions
South Holland District Council,http://statistics.data.gov.uk/id/local-authority/32UF,Housing,Agency Staff,09/09/2021,30005638,"1,000.00 ",G2 Recruitment Solutions
South Holland District Council,http://statistics.data.gov.uk/id/local-authority/32UF,Housing,Agency Staff,09/09/2021,30005639,"1,000.00 ",G2 Recruitment Solutions
South Holland District Council,http://statistics.data.gov.uk/id/local-authority/32UF,Housing,Agency Staff,09/09/2021,30005641,"1,000.00 ",G2 Recruitment Solutions
South Holland District Council,http://statistics.data.gov.uk/id/local-authority/32UF,Housing,Agency Staff,09/09/2021,30005642,"1,000.00 ",G2 Recruitment Solutions
South Holland District Council,http://statistics.data.gov.uk/id/local-authority/32UF,Housing,Agency Staff,09/09/2021,30005643,"2,000.00 ",G2 Recruitment Solutions
South Holland District Council,http://statistics.data.gov.uk/id/local-authority/32UF,Housing,Agency Staff,09/09/2021,30005644,"1,000.00 ",G2 Recruitment Solutions
South Holland District Council,http://statistics.data.gov.uk/id/local-authority/32UF,Housing,Agency Staff,09/09/2021,30005645,"1,900.00 ",G2 Recruitment Solutions
South Holland District Council,http://statistics.data.gov.uk/id/local-authority/32UF,Housing,Agency Staff,14/09/2021,30005740,"1,000.00 ",G2 Recruitment Solutions
South Holland District Council,http://statistics.data.gov.uk/id/local-authority/32UF,Housing,Agency Staff,14/09/2021,30005757,750.00 ,G2 Recruitment Solutions
South Holland District Council,http://statistics.data.gov.uk/id/local-authority/32UF,Housing,Agency Staff,14/09/2021,30005762,800.00 ,G2 Recruitment Solutions
South Holland District Council,http://statistics.data.gov.uk/id/local-authority/32UF,Housing,Agency Staff,14/09/2021,30005763,800.00 ,G2 Recruitment Solutions
South Holland District Council,http://statistics.data.gov.uk/id/local-authority/32UF,Housing,Agency Staff,23/09/2021,30006002,"1,000.00 ",G2 Recruitment Solutions
South Holland District Council,http://statistics.data.gov.uk/id/local-authority/32UF,Housing,Agency Staff,28/09/2021,30006003,"1,000.00 ",G2 Recruitment Solutions
South Holland District Council,http://statistics.data.gov.uk/id/local-authority/32UF,Housing,Agency Staff,28/09/2021,30006004,"1,000.00 ",G2 Recruitment Solutions
South Holland District Council,http://statistics.data.gov.uk/id/local-authority/32UF,Housing,Bed and Breakfast Accommodation (Homelessness Service),23/09/2021,30005941,812.50 ,Anglia Motel
South Holland District Council,http://statistics.data.gov.uk/id/local-authority/32UF,Housing,Bed and Breakfast Accommodation (Homelessness Service),23/09/2021,30005943,875.00 ,Anglia Motel
South Holland District Council,http://statistics.data.gov.uk/id/local-authority/32UF,Housing,Bed and Breakfast Accommodation (Homelessness Service),23/09/2021,30005944,875.00 ,Anglia Motel
South Holland District Council,http://statistics.data.gov.uk/id/local-authority/32UF,Housing,Bed and Breakfast Accommodation (Homelessness Service),23/09/2021,30005945,750.00 ,Anglia Motel
South Holland District Council,http://statistics.data.gov.uk/id/local-authority/32UF,Housing,Bed and Breakfast Accommodation (Homelessness Service),23/09/2021,30005946,490.00 ,Anglia Motel
South Holland District Council,http://statistics.data.gov.uk/id/local-authority/32UF,Housing,Bed and Breakfast Accommodation (Homelessness Service),23/09/2021,30005947,490.00 ,Anglia Motel
South Holland District Council,http://statistics.data.gov.uk/id/local-authority/32UF,Housing,Bed and Breakfast Accommodation (Homelessness Service),23/09/2021,30005948,490.00 ,Anglia Motel
South Holland District Council,http://statistics.data.gov.uk/id/local-authority/32UF,Housing,Bed and Breakfast Accommodation (Homelessness Service),23/09/2021,30005949,490.00 ,Anglia Motel
South Holland District Council,http://statistics.data.gov.uk/id/local-authority/32UF,Housing,Bed and Breakfast Accommodation (Homelessness Service),23/09/2021,30005951,490.00 ,Anglia Motel
South Holland District Council,http://statistics.data.gov.uk/id/local-authority/32UF,Housing,Bed and Breakfast Accommodation (Homelessness Service),23/09/2021,30005953,490.00 ,Anglia Motel
South Holland District Council,http://statistics.data.gov.uk/id/local-authority/32UF,Housing,Bed and Breakfast Accommodation (Homelessness Service),23/09/2021,30005954,875.00 ,Anglia Motel
South Holland District Council,http://statistics.data.gov.uk/id/local-authority/32UF,Housing,Bed and Breakfast Accommodation (Homelessness Service),23/09/2021,30005955,875.00 ,Anglia Motel
South Holland District Council,http://statistics.data.gov.uk/id/local-authority/32UF,Housing,Bed and Breakfast Accommodation (Homelessness Service),23/09/2021,30005957,490.00 ,Anglia Motel
South Holland District Council,http://statistics.data.gov.uk/id/local-authority/32UF,Housing,Bed and Breakfast Accommodation (Homelessness Service),23/09/2021,30005959,490.00 ,Anglia Motel
South Holland District Council,http://statistics.data.gov.uk/id/local-authority/32UF,Housing,Bed and Breakfast Accommodation (Homelessness Service),28/09/2021,30006016,750.00 ,Dog in a Doublet
South Holland District Council,http://statistics.data.gov.uk/id/local-authority/32UF,Housing,Grants and Contributions to Outside Bodies - No Service Received,23/09/2021,30005010,"8,167.00 ",Citizens Advice South Lincolnshire
South Holland District Council,http://statistics.data.gov.uk/id/local-authority/32UF,Housing,Grants and Contributions to Outside Bodies - No Service Received,09/09/2021,30005608,"1,800.00 ",C Carters Ltd
South Holland District Council,http://statistics.data.gov.uk/id/local-authority/32UF,Housing,Grants and Contributions to Outside Bodies - No Service Received,23/09/2021,30005847,"16,800.00 ",County Builders Ltd
South Holland District Council,http://statistics.data.gov.uk/id/local-authority/32UF,Housing,Grants and Contributions to Outside Bodies - No Service Received,28/09/2021,30005870,"3,900.50 ",Princebuild Ltd
South Holland District Council,http://statistics.data.gov.uk/id/local-authority/32UF,Housing,Grants and Contributions to Outside Bodies - No Service Received,23/09/2021,30005937,"1,760.55 ",Stuart Taplin Plumbing and Build Maint
South Holland District Council,http://statistics.data.gov.uk/id/local-authority/32UF,Housing,Professional and Contractors Fees,07/09/2021,30005407,32.00 ,Lincolnshire County Council
South Holland District Council,http://statistics.data.gov.uk/id/local-authority/32UF,Housing,Works to Buildings (Main Contractor),14/09/2021,30004573,939.54 ,D Brown Building Contractors Ltd
South Holland District Council,http://statistics.data.gov.uk/id/local-authority/32UF,Housing,Works to Buildings (Main Contractor),16/09/2021,30005811,"13,452.80 ",D Brown Building Contractors Ltd
South Holland District Council,http://statistics.data.gov.uk/id/local-authority/32UF,Housing Landlord Manager,Buildings Maintenance - Programmed,02/09/2021,30005370,"4,940.00 ",D Harrison
South Holland District Council,http://statistics.data.gov.uk/id/local-authority/32UF,Housing Landlord Manager,Buildings Maintenance - Programmed,02/09/2021,30005391,966.25 ,D Harrison
South Holland District Council,http://statistics.data.gov.uk/id/local-authority/32UF,Housing Landlord Manager,Buildings Maintenance - Programmed,30/09/2021,30005662,"1,295.00 ",Oakleaf Surveying Ltd
South Holland District Council,http://statistics.data.gov.uk/id/local-authority/32UF,Housing Landlord Manager,Buildings Maintenance - Programmed,21/09/2021,30005751,511.81 ,Western Power Distribution East Mids Plc
South Holland District Council,http://statistics.data.gov.uk/id/local-authority/32UF,Housing Landlord Manager,Buildings Maintenance - Programmed,28/09/2021,30005970,500.00 ,Ian Brown Electrical Engineers Ltd
South Holland District Council,http://statistics.data.gov.uk/id/local-authority/32UF,Housing Landlord Manager,Buildings Maintenance - Programmed,30/09/2021,30006010,"4,790.00 ",Mr Clever Clean Peterborough Ltd
South Holland District Council,http://statistics.data.gov.uk/id/local-authority/32UF,Housing Landlord Manager,Buildings Maintenance - Programmed,30/09/2021,30006205,"2,920.00 ",Ian Brown Electrical Engineers Ltd
South Holland District Council,http://statistics.data.gov.uk/id/local-authority/32UF,Housing Landlord Manager,Buildings Maintenance - Responsive,07/09/2021,30005371,450.00 ,Boors Ltd
South Holland District Council,http://statistics.data.gov.uk/id/local-authority/32UF,Housing Landlord Manager,Buildings Maintenance - Responsive,07/09/2021,30005372,995.00 ,Boors Ltd
South Holland District Council,http://statistics.data.gov.uk/id/local-authority/32UF,Housing Landlord Manager,Buildings Maintenance - Responsive,07/09/2021,30005373,720.00 ,Boors Ltd
South Holland District Council,http://statistics.data.gov.uk/id/local-authority/32UF,Housing Landlord Manager,Buildings Maintenance - Responsive,02/09/2021,30005383,998.00 ,L Fragale
South Holland District Council,http://statistics.data.gov.uk/id/local-authority/32UF,Housing Landlord Manager,Buildings Maintenance - Responsive,02/09/2021,30005385,"1,995.00 ",L Fragale
South Holland District Council,http://statistics.data.gov.uk/id/local-authority/32UF,Housing Landlord Manager,Buildings Maintenance - Responsive,02/09/2021,30005386,625.00 ,L Fragale
South Holland District Council,http://statistics.data.gov.uk/id/local-authority/32UF,Housing Landlord Manager,Buildings Maintenance - Responsive,23/09/2021,30005387,980.00 ,Jointline
South Holland District Council,http://statistics.data.gov.uk/id/local-authority/32UF,Housing Landlord Manager,Buildings Maintenance - Responsive,07/09/2021,30005402,530.00 ,White Knight Locksmith and Security Serv
South Holland District Council,http://statistics.data.gov.uk/id/local-authority/32UF,Housing Landlord Manager,Buildings Maintenance - Responsive,07/09/2021,30005423,"1,315.98 ",GBSG Ltd
South Holland District Council,http://statistics.data.gov.uk/id/local-authority/32UF,Housing Landlord Manager,Buildings Maintenance - Responsive,23/09/2021,30005595,973.38 ,H20 Nationwide Limited
South Holland District Council,http://statistics.data.gov.uk/id/local-authority/32UF,Housing Landlord Manager,Buildings Maintenance - Responsive,23/09/2021,30005596,530.66 ,H20 Nationwide Limited
South Holland District Council,http://statistics.data.gov.uk/id/local-authority/32UF,Housing Landlord Manager,Buildings Maintenance - Responsive,14/09/2021,30005657,483.00 ,Healthguard Limited
South Holland District Council,http://statistics.data.gov.uk/id/local-authority/32UF,Housing Landlord Manager,Buildings Maintenance - Responsive,16/09/2021,30005660,557.00 ,Healthguard Limited
South Holland District Council,http://statistics.data.gov.uk/id/local-authority/32UF,Housing Landlord Manager,Buildings Maintenance - Responsive,21/09/2021,30005899,470.00 ,Healthguard Limited
South Holland District Council,http://statistics.data.gov.uk/id/local-authority/32UF,Housing Landlord Manager,Buildings Maintenance - Responsive,23/09/2021,30005960,"3,450.00 ",Dalpest Solution Ltd
South Holland District Council,http://statistics.data.gov.uk/id/local-authority/32UF,Housing Landlord Manager,Buildings Maintenance - Responsive,30/09/2021,30006169,945.00 ,Robert Dunmore
South Holland District Council,http://statistics.data.gov.uk/id/local-authority/32UF,Housing Landlord Manager,Buildings Maintenance - Responsive,30/09/2021,30006172,"3,402.80 ",Tyrrell Contractors Ltd
South Holland District Council,http://statistics.data.gov.uk/id/local-authority/32UF,Housing Landlord Manager,Buildings Maintenance - Responsive,05/10/2021,30006231,800.00 ,Boors Ltd
South Holland District Council,http://statistics.data.gov.uk/id/local-authority/32UF,Housing Landlord Manager,Buildings Maintenance - Responsive,05/10/2021,30006243,"1,275.00 ",Boors Ltd
South Holland District Council,http://statistics.data.gov.uk/id/local-authority/32UF,Housing Landlord Manager,Buildings Maintenance - Responsive,05/10/2021,30006298,"1,750.00 ",L Fragale
South Holland District Council,http://statistics.data.gov.uk/id/local-authority/32UF,Housing Landlord Manager,Buildings Maintenance - Responsive,05/10/2021,30006299,"1,780.00 ",L Fragale
South Holland District Council,http://statistics.data.gov.uk/id/local-authority/32UF,Housing Landlord Manager,Buildings Maintenance - Responsive,05/10/2021,30006301,675.00 ,L Fragale
South Holland District Council,http://statistics.data.gov.uk/id/local-authority/32UF,Housing Landlord Manager,Buildings Maintenance - Responsive,05/10/2021,30006304,855.00 ,L Fragale
South Holland District Council,http://statistics.data.gov.uk/id/local-authority/32UF,Housing Landlord Manager,Buildings Maintenance - Responsive,05/10/2021,30006306,595.00 ,L Fragale
South Holland District Council,http://statistics.data.gov.uk/id/local-authority/32UF,Housing Landlord Manager,Cesspool Emptying,07/10/2021,30006207,"1,650.00 ",Dalrod Drainage Solutions
South Holland District Council,http://statistics.data.gov.uk/id/local-authority/32UF,Housing Landlord Manager,Cleaning Contract,30/09/2021,30005770,472.95 ,Veolia Es UK Ltd
South Holland District Council,http://statistics.data.gov.uk/id/local-authority/32UF,Housing Landlord Manager,Clothing Uniforms and Laundry,14/10/2021,30006246,"1,584.54 ",Seal Select Products Ltd
South Holland District Council,http://statistics.data.gov.uk/id/local-authority/32UF,Housing Landlord Manager,Computer Software Licence Costs,30/09/2021,30005589,"2,225.53 ",Automico Ltd
South Holland District Council,http://statistics.data.gov.uk/id/local-authority/32UF,Housing Landlord Manager,Computer Software Licence Costs,14/10/2021,30006036,"3,000.00 ",NEC Software Solutions UK Ltd
South Holland District Council,http://statistics.data.gov.uk/id/local-authority/32UF,Housing Landlord Manager,Drain Repairs,07/10/2021,30006206,"13,867.06 ",Dalrod Drainage Solutions
South Holland District Council,http://statistics.data.gov.uk/id/local-authority/32UF,Housing Landlord Manager,Electricity,07/09/2021,30005441,458.22 ,Total Energies
South Holland District Council,http://statistics.data.gov.uk/id/local-authority/32UF,Housing Landlord Manager,Electricity,09/09/2021,30005501,"3,180.45 ",Total Energies
South Holland District Council,http://statistics.data.gov.uk/id/local-authority/32UF,Housing Landlord Manager,Electricity,09/09/2021,30005546,564.13 ,E.ON
South Holland District Council,http://statistics.data.gov.uk/id/local-authority/32UF,Housing Landlord Manager,External Painting Repairs,21/09/2021,30005814,"4,890.00 ",Mitie Property Services UK Ltd
South Holland District Council,http://statistics.data.gov.uk/id/local-authority/32UF,Housing Landlord Manager,Fuel and Oil,14/09/2021,30005632,366.30 ,C H Jones Ltd
South Holland District Council,http://statistics.data.gov.uk/id/local-authority/32UF,Housing Landlord Manager,Fuel and Oil,09/09/2021,30005676,474.11 ,C H Jones Ltd
South Holland District Council,http://statistics.data.gov.uk/id/local-authority/32UF,Housing Landlord Manager,Fuel and Oil,28/09/2021,30006052,544.59 ,C H Jones Ltd
South Holland District Council,http://statistics.data.gov.uk/id/local-authority/32UF,Housing Landlord Manager,Fuel and Oil,28/09/2021,30006143,408.73 ,C H Jones Ltd
South Holland District Council,http://statistics.data.gov.uk/id/local-authority/32UF,Housing Landlord Manager,Furniture and Equipment,14/09/2021,30005611,652.74 ,Stannah
South Holland District Council,http://statistics.data.gov.uk/id/local-authority/32UF,Housing Landlord Manager,Furniture and Equipment,21/09/2021,30005614,"12,782.57 ",Tunstall Healthcare UK Ltd
South Holland District Council,http://statistics.data.gov.uk/id/local-authority/32UF,Housing Landlord Manager,Furniture and Equipment,14/09/2021,30005658,"1,020.00 ",E.ON Energy Solutions Ltd
South Holland District Council,http://statistics.data.gov.uk/id/local-authority/32UF,Housing Landlord Manager,Furniture and Equipment,30/09/2021,30005773,"1,141.00 ",Aaron Services Ltd
South Holland District Council,http://statistics.data.gov.uk/id/local-authority/32UF,Housing Landlord Manager,Furniture and Equipment,16/09/2021,30005850,730.00 ,Perfect Move
South Holland District Council,http://statistics.data.gov.uk/id/local-authority/32UF,Housing Landlord Manager,Furniture and Equipment,28/09/2021,30006162,"13,208.66 ",Tunstall Healthcare UK Ltd
South Holland District Council,http://statistics.data.gov.uk/id/local-authority/32UF,Housing Landlord Manager,Gas,12/10/2021,30005865,586.90 ,Espo Gas and Electricity
South Holland District Council,http://statistics.data.gov.uk/id/local-authority/32UF,Housing Landlord Manager,Gas Repairs,30/09/2021,30005755,"3,932.35 ",Aaron Services Ltd
South Holland District Council,http://statistics.data.gov.uk/id/local-authority/32UF,Housing Landlord Manager,Gas Repairs,30/09/2021,30005969,"12,671.69 ",Aaron Services Ltd
South Holland District Council,http://statistics.data.gov.uk/id/local-authority/32UF,Housing Landlord Manager,Gas Servicing,30/09/2021,30005772,"1,690.00 ",Aaron Services Ltd
South Holland District Council,http://statistics.data.gov.uk/id/local-authority/32UF,Housing Landlord Manager,Gas Servicing,30/09/2021,30005813,"26,727.11 ",Aaron Services Ltd
South Holland District Council,http://statistics.data.gov.uk/id/local-authority/32UF,Housing Landlord Manager,Grants and Contributions to Outside Bodies - No Service Received,23/09/2021,30005921,"18,378.91 ",Ian Brown Electrical Engineers Ltd
South Holland District Council,http://statistics.data.gov.uk/id/local-authority/32UF,Housing Landlord Manager,Grounds Maintenance Contract (External),23/09/2021,30005858,"1,550.00 ",Greenscape Tree Safe Ltd
South Holland District Council,http://statistics.data.gov.uk/id/local-authority/32UF,Housing Landlord Manager,Insurance,23/09/2021,30005825,"2,759.42 ",Kents of Spalding Ltd
South Holland District Council,http://statistics.data.gov.uk/id/local-authority/32UF,Housing Landlord Manager,Legal Fees,16/09/2021,30005565,855.00 ,Capsticks Solicitors LLP
South Holland District Council,http://statistics.data.gov.uk/id/local-authority/32UF,Housing Landlord Manager,Materials and Consumables,28/09/2021,30005558,"1,862.18 ",Gibbs and Dandy
South Holland District Council,http://statistics.data.gov.uk/id/local-authority/32UF,Housing Landlord Manager,Materials and Consumables,28/09/2021,30005586,"2,511.17 ",Gibbs and Dandy
South Holland District Council,http://statistics.data.gov.uk/id/local-authority/32UF,Housing Landlord Manager,Materials and Consumables,16/09/2021,30005594,465.16 ,EPH Supplies Wholesale Ltd
South Holland District Council,http://statistics.data.gov.uk/id/local-authority/32UF,Housing Landlord Manager,Materials and Consumables,16/09/2021,30005602,447.04 ,Kirby and Wells Ltd T A Kawstore
South Holland District Council,http://statistics.data.gov.uk/id/local-authority/32UF,Housing Landlord Manager,Materials and Consumables,28/09/2021,30005620,"3,864.79 ",Gibbs and Dandy
South Holland District Council,http://statistics.data.gov.uk/id/local-authority/32UF,Housing Landlord Manager,Professional and Contractors Fees,28/09/2021,30005457,"1,980.00 ",NPS Peterborough Ltd
South Holland District Council,http://statistics.data.gov.uk/id/local-authority/32UF,Housing Landlord Manager,Professional and Contractors Fees,28/09/2021,30005458,"3,750.00 ",NPS Peterborough Ltd
South Holland District Council,http://statistics.data.gov.uk/id/local-authority/32UF,Housing Landlord Manager,Professional and Contractors Fees,23/09/2021,30005580,"4,000.00 ",KPMG LLP
South Holland District Council,http://statistics.data.gov.uk/id/local-authority/32UF,Housing Landlord Manager,Professional and Contractors Fees,28/09/2021,30005605,811.25 ,NPS Peterborough Ltd
South Holland District Council,http://statistics.data.gov.uk/id/local-authority/32UF,Housing Landlord Manager,Professional and Contractors Fees,30/09/2021,30005623,500.00 ,NEC Software Solutions UK Ltd
South Holland District Council,http://statistics.data.gov.uk/id/local-authority/32UF,Housing Landlord Manager,Professional and Contractors Fees,14/09/2021,30005659,"3,750.00 ",NPS Peterborough Ltd
South Holland District Council,http://statistics.data.gov.uk/id/local-authority/32UF,Housing Landlord Manager,Professional and Contractors Fees,16/09/2021,30005795,869.00 ,Morgan Lambert Ltd 2018
South Holland District Council,http://statistics.data.gov.uk/id/local-authority/32UF,Housing Landlord Manager,Professional and Contractors Fees,07/10/2021,30005840,550.00 ,NEC Software Solutions UK Ltd
South Holland District Council,http://statistics.data.gov.uk/id/local-authority/32UF,Housing Landlord Manager,PSPS Non-Base Contract Costs,05/10/2021,30003485,"52,442.00 ",Public Sector Partnership Services Ltd
South Holland District Council,http://statistics.data.gov.uk/id/local-authority/32UF,Housing Landlord Manager,Roof Repairs,02/09/2021,30005339,"1,370.00 ",Wrights and Holbeach Asphalt Ltd
South Holland District Council,http://statistics.data.gov.uk/id/local-authority/32UF,Housing Landlord Manager,Roof Repairs,02/09/2021,30005356,"1,080.00 ",Wrights and Holbeach Asphalt Ltd
South Holland District Council,http://statistics.data.gov.uk/id/local-authority/32UF,Housing Landlord Manager,Roof Repairs,02/09/2021,30005357,"1,380.00 ",Wrights and Holbeach Asphalt Ltd
South Holland District Council,http://statistics.data.gov.uk/id/local-authority/32UF,Housing Landlord Manager,Roof Repairs,02/09/2021,30005358,825.00 ,Kev Forman Roofing
South Holland District Council,http://statistics.data.gov.uk/id/local-authority/32UF,Housing Landlord Manager,Roof Repairs,09/09/2021,30005377,420.00 ,Kev Forman Roofing
South Holland District Council,http://statistics.data.gov.uk/id/local-authority/32UF,Housing Landlord Manager,Roof Repairs,07/09/2021,30005378,575.00 ,Kev Forman Roofing
South Holland District Council,http://statistics.data.gov.uk/id/local-authority/32UF,Housing Landlord Manager,Roof Repairs,23/09/2021,30006024,940.00 ,Kev Forman Roofing
South Holland District Council,http://statistics.data.gov.uk/id/local-authority/32UF,Housing Landlord Manager,Roof Repairs,30/09/2021,30006226,485.00 ,Kev Forman Roofing
South Holland District Council,http://statistics.data.gov.uk/id/local-authority/32UF,Housing Landlord Manager,Roof Repairs,30/09/2021,30006249,"3,610.00 ",Kev Forman Roofing
South Holland District Council,http://statistics.data.gov.uk/id/local-authority/32UF,Housing Landlord Manager,Roof Repairs,30/09/2021,30006250,590.00 ,Kev Forman Roofing
South Holland District Council,http://statistics.data.gov.uk/id/local-authority/32UF,Housing Landlord Manager,Roof Repairs,05/10/2021,30006308,"5,815.00 ",Kev Forman Roofing
South Holland District Council,http://statistics.data.gov.uk/id/local-authority/32UF,Housing Landlord Manager,Sewerage Treatment Works,30/09/2021,30006212,"4,922.67 ",C G Godfrey Ltd
South Holland District Council,http://statistics.data.gov.uk/id/local-authority/32UF,Housing Landlord Manager,Sewerage Treatment Works,30/09/2021,30006215,"4,806.29 ",C G Godfrey Ltd
South Holland District Council,http://statistics.data.gov.uk/id/local-authority/32UF,Housing Landlord Manager,Sewerage Treatment Works,30/09/2021,30006217,725.10 ,C G Godfrey Ltd
South Holland District Council,http://statistics.data.gov.uk/id/local-authority/32UF,Housing Landlord Manager,Sewerage Treatment Works,30/09/2021,30006219,"4,093.79 ",C G Godfrey Ltd
South Holland District Council,http://statistics.data.gov.uk/id/local-authority/32UF,Housing Landlord Manager,Solid Fuel Servicing,30/09/2021,30005968,"2,035.36 ",Aaron Services Ltd
South Holland District Council,http://statistics.data.gov.uk/id/local-authority/32UF,Housing Landlord Manager,Staff Training Expenses (Non-Payroll),30/09/2021,30005560,"1,400.00 ",Bytesize Training Ltd
South Holland District Council,http://statistics.data.gov.uk/id/local-authority/32UF,Housing Landlord Manager,Staff Training Expenses (Non-Payroll),07/10/2021,30005768,"1,750.00 ",Bytesize Training Ltd
South Holland District Council,http://statistics.data.gov.uk/id/local-authority/32UF,Housing Landlord Manager,Staff Training Expenses (Non-Payroll),21/09/2021,30005861,"1,895.00 ",Solace
South Holland District Council,http://statistics.data.gov.uk/id/local-authority/32UF,Housing Landlord Manager,Staff Training Expenses (Non-Payroll),14/10/2021,30005975,"1,750.00 ",Bytesize Training Ltd
South Holland District Council,http://statistics.data.gov.uk/id/local-authority/32UF,Housing Landlord Manager,Staff Training Expenses (Non-Payroll),22/10/2021,30006218,"1,600.00 ",Cambridge Safety
South Holland District Council,http://statistics.data.gov.uk/id/local-authority/32UF,Housing Landlord Manager,Subscriptions to Organisations and Other Bodies,21/09/2021,30005421,"7,200.00 ",Capita Property and Infrastructure Ltd
South Holland District Council,http://statistics.data.gov.uk/id/local-authority/32UF,Housing Landlord Manager,Void Repairs,07/09/2021,30005374,"6,050.00 ",Boors Ltd
South Holland District Council,http://statistics.data.gov.uk/id/local-authority/32UF,Housing Landlord Manager,Void Repairs,05/10/2021,30006237,545.00 ,Boors Ltd
South Holland District Council,http://statistics.data.gov.uk/id/local-authority/32UF,Housing Landlord Manager,Void Repairs,05/10/2021,30006300,997.00 ,L Fragale
South Holland District Council,http://statistics.data.gov.uk/id/local-authority/32UF,Housing Landlord Manager,Void Repairs,05/10/2021,30006313,441.67 ,andrew Hicks Ltd
South Holland District Council,http://statistics.data.gov.uk/id/local-authority/32UF,Housing Landlord Manager,Works to Buildings (Main Contractor),22/10/2021,30005403,"35,382.27 ",Hodgson Sayers Ltd
South Holland District Council,http://statistics.data.gov.uk/id/local-authority/32UF,Housing Landlord Manager,Works to Buildings (Main Contractor),22/10/2021,30006296,"1,324.92 ",Hodgson Sayers Ltd
South Holland District Council,http://statistics.data.gov.uk/id/local-authority/32UF,HR,Other Income,14/09/2021,30005705,22.28 ,Fideliti Limited
South Holland District Council,http://statistics.data.gov.uk/id/local-authority/32UF,HR,Other Income,23/09/2021,30006018,-26.48 ,Unison
South Holland District Council,http://statistics.data.gov.uk/id/local-authority/32UF,HR,Staff Recruitment,14/09/2021,30005710,837.00 ,Public Sector Partnership Services Ltd
South Holland District Council,http://statistics.data.gov.uk/id/local-authority/32UF,HR,Staff Training Expenses (Non-Payroll),23/09/2021,30006030,950.00 ,The Institute of Licensing (Events) Ltd
South Holland District Council,http://statistics.data.gov.uk/id/local-authority/32UF,HR,Staff Training Expenses (Non-Payroll),19/10/2021,30006195,"3,952.88 ",Magela Consultants Ltd
South Holland District Council,http://statistics.data.gov.uk/id/local-authority/32UF,ICT and Customer Services,Computer Hardware Maintenance,09/09/2021,30005567,"1,009.61 ",Nominet UK
South Holland District Council,http://statistics.data.gov.uk/id/local-authority/32UF,ICT and Customer Services,Computer Hardware Maintenance,19/10/2021,30006034,"2,840.00 ",Cammax Limited
South Holland District Council,http://statistics.data.gov.uk/id/local-authority/32UF,ICT and Customer Services,Computer Hardware Purchase,30/09/2021,30005411,"1,462.52 ",Dell Corporation Ltd
South Holland District Council,http://statistics.data.gov.uk/id/local-authority/32UF,ICT and Customer Services,Computer Software Licence Costs,28/09/2021,30005553,614.51 ,Public Sector Partnership Services Ltd
South Holland District Council,http://statistics.data.gov.uk/id/local-authority/32UF,ICT and Customer Services,Materials and Consumables,28/09/2021,30005553,776.64 ,Public Sector Partnership Services Ltd
South Holland District Council,http://statistics.data.gov.uk/id/local-authority/32UF,ICT and Customer Services,Telephones,09/09/2021,30005505,"3,044.75 ",Vodafone Ltd Corporate
South Holland District Council,http://statistics.data.gov.uk/id/local-authority/32UF,Planning,Agency - Vacant Post Cover,30/09/2021,30005562,"1,462.50 ",Vivid Resourcing
South Holland District Council,http://statistics.data.gov.uk/id/local-authority/32UF,Planning,Agency - Vacant Post Cover,07/10/2021,30005839,"1,289.40 ",Vivid Resourcing
South Holland District Council,http://statistics.data.gov.uk/id/local-authority/32UF,Planning,Agency - Vacant Post Cover,14/10/2021,30006007,"1,492.20 ",Vivid Resourcing
South Holland District Council,http://statistics.data.gov.uk/id/local-authority/32UF,Planning,Agency - Vacant Post Cover,22/10/2021,30006261,"1,482.75 ",Vivid Resourcing
South Holland District Council,http://statistics.data.gov.uk/id/local-authority/32UF,Planning,Stationery,09/09/2021,30005294,426.62 ,Abbey Print Ltd
South Holland District Council,http://statistics.data.gov.uk/id/local-authority/32UF,Public Protection,Fuel and Oil,09/09/2021,30005676,39.38 ,C H Jones Ltd
South Holland District Council,http://statistics.data.gov.uk/id/local-authority/32UF,Public Protection,Other Miscellaneous Expenses,14/09/2021,30005413,350.00 ,The Joker Entertainment
South Holland District Council,http://statistics.data.gov.uk/id/local-authority/32UF,Public Protection,Professional and Contractors Fees,09/09/2021,30005341,"1,625.00 ",Robert Murphy Ta Keystone Consultants
South Holland District Council,http://statistics.data.gov.uk/id/local-authority/32UF,Public Protection,Professional and Contractors Fees,14/09/2021,30005663,"1,176.00 ",Robert Murphy Ta Keystone Consultants
South Holland District Council,http://statistics.data.gov.uk/id/local-authority/32UF,Public Protection,Public Courses and Workshops,14/09/2021,30005413,750.00 ,The Joker Entertainment
South Holland District Council,http://statistics.data.gov.uk/id/local-authority/32UF,SHDC Revenues & Benefits,External Audit Fees,23/09/2021,30005579,"5,750.00 ",KPMG LLP
South Holland District Council,http://statistics.data.gov.uk/id/local-authority/32UF,Spalding Specials,Buildings Maintenance - Responsive,23/09/2021,30005596,121.26 ,H20 Nationwide Limited
South Holland District Council,http://statistics.data.gov.uk/id/local-authority/32UF,Town Centre Improvement Plan,Furniture and Equipment,30/09/2021,30005727,"1,233.00 ",TST Shading Ltd
South Holland District Council,http://statistics.data.gov.uk/id/local-authority/32UF,Town Centre Improvement Plan,Other Miscellaneous Expenses,23/09/2021,30005648,"1,233.00 ",TST Shading Ltd
